fUSD/lending_fUSD_20240412
["ID","MTS","AMOUNT","RATE_DAILY","PERIOD"]
[322339283,1712956361012,-500.0,0.00049315,120]
[322339284,1712956361021,-1230.23,0.00049315,120]
[322339285,1712956361030,-529.81,0.00049315,120]
[322339286,1712956361039,-500.0,0.00049315,120]
[322339287,1712956361048,-1773.86,0.00049315,120]
[322339288,1712956361057,-732.33,0.00049315,120]
[322339289,1712956361067,-2118.05,0.00049315,120]
[322339290,1712956361076,-645.62,0.00049315,120]
[322339291,1712956361086,-500.0,0.00049315,120]
[322339292,1712956361095,-546.03,0.00049315,120]
[322339293,1712956361105,-1198.72,0.00049315,120]
[322339294,1712956361118,-500.0,0.00049315,120]
[322339295,1712956361127,-5708.25,0.00049315,120]
[322339296,1712956361136,-2977.13,0.00049315,120]
[322339297,1712956361145,-500.0,0.00049315,120]
[322339298,1712956361155,-746.8,0.00049315,120]
[322339299,1712956361165,-500.0,0.00049315,120]
[322339300,1712956361175,-664.07,0.00049315,120]
[322339301,1712956361185,-500.0,0.00049315,120]
[322339302,1712956361194,-1521.01,0.00049315,120]
[322339303,1712956361204,-307.19,0.00049315,120]
[322339304,1712956361213,-2320.0,0.00049315,120]
[322339305,1712956361223,-706.82,0.00049315,120]
[322339306,1712956361232,-3679.13,0.00049315,120]
[322339307,1712956361242,-500.0,0.00049315,120]
[322339308,1712956361251,-15731.26,0.00049315,120]
[322339309,1712956361260,-1058.86,0.00049315,120]
[322339310,1712956361269,-521.02,0.00049315,120]
[322339311,1712956361278,-1703.15,0.00049315,120]
[322339312,1712956361288,-1166.54,0.00049315,120]
[322339313,1712956361297,-2094.0,0.00049315,120]
[322339314,1712956361307,-500.0,0.00049315,120]
[322339315,1712956361316,-2142.41,0.00049315,120]
[322339316,1712956361326,-500.0,0.00049315,120]
[322339317,1712956361338,-985.95,0.00049315,120]
[322339318,1712956361347,-937.11,0.00049315,120]
[322339319,1712956361357,-666.0,0.00049315,2]
[322339320,1712956361368,-591.24,0.00049315,120]
[322339321,1712956361378,-691.8,0.00049315,120]
[322339322,1712956361388,-2120.81,0.00049315,120]
[322339323,1712956361398,-500.0,0.00049315,120]
[322339324,1712956361407,-534.15,0.00049315,120]
[322339325,1712956361417,-512.64,0.00049315,120]
[322339326,1712956361427,-500.0,0.00049315,120]
[322339327,1712956361436,-812.89,0.00049315,120]
[322339328,1712956361446,-2419.16,0.00049315,120]
[322339329,1712956361455,-4130.71,0.00049315,120]
[322339330,1712956361465,-500.0,0.00049315,120]
[322339331,1712956361474,-3070.85,0.00049315,120]
[322339332,1712956361484,-500.0,0.00049315,120]
[322339333,1712956361493,-756.68,0.00049315,120]
[322339334,1712956361502,-642.02,0.00049315,120]
[322339335,1712956361512,-679.55,0.00049315,120]
[322339336,1712956361521,-1182.46,0.00049315,120]
[322339337,1712956361530,-906.01,0.00049315,120]
[322339338,1712956361540,-718.33,0.00049315,120]
[322339339,1712956361549,-501.77,0.00049315,120]
[322339340,1712956361559,-8113.01,0.00049315,120]
[322339341,1712956361569,-500.0,0.00049315,120]
[322339342,1712956361578,-552.54,0.00049315,120]
[322339343,1712956361587,-1691.75,0.00049315,120]
[322339344,1712956361596,-796.65,0.00049315,120]
[322339345,1712956361605,-500.0,0.00049315,120]
[322339346,1712956361616,-500.0,0.00049315,120]
[322339347,1712956361626,-1038.17,0.00049315,120]
[322339348,1712956361635,-1931.38,0.00049315,120]
[322339349,1712956361645,-500.0,0.00049315,120]
[322339350,1712956361654,-1909.8,0.00049315,120]
[322339351,1712956361663,-500.0,0.00049315,120]
[322339352,1712956361673,-500.0,0.00049315,120]
[322339353,1712956361682,-1375.31,0.00049315,120]
[322339354,1712956361691,-3128.79,0.00049315,120]
[322339355,1712956361701,-2327.1,0.00049315,120]
[322339356,1712956361711,-18182.37,0.00049315,120]
[322339357,1712956361721,-6035.47,0.00049315,120]
[322339358,1712956361731,-2577.26,0.00049315,120]
[322339359,1712956361740,-500.0,0.00049315,7]
[322339360,1712956361749,-1143.56,0.00049315,120]
[322339361,1712956361759,-4212.38,0.00049315,120]
[322339362,1712956361769,-194.75800266,0.00049315,120]
[322339363,1712956361778,-500.0,0.00049315,120]
[322339364,1712956361788,-709.5,0.00049315,120]
[322339365,1712956361797,-1251.78,0.00049315,120]
[322339366,1712956361807,-500.0,0.00049315,120]
[322339367,1712956361816,-1227.56,0.00049315,120]
[322339368,1712956361826,-500.0,0.00049315,120]
[322339369,1712956361835,-962.14,0.00049315,120]
[322339370,1712956361844,-579.98,0.00049315,120]
[322339371,1712956361853,-526.36,0.00049315,120]
[322339372,1712956361864,-500.0,0.00049315,120]
[322339373,1712956361873,-500.0,0.00049315,120]
[322339374,1712956361882,-595.87,0.00049315,2]
[322339375,1712956361891,-500.0,0.00049315,120]
[322339376,1712956361900,-15043.16,0.00049315,120]
[322339377,1712956361910,-500.0,0.00049315,120]
[322339378,1712956361919,-3922.55,0.00049315,120]
[322339379,1712956361928,-500.0,0.00049315,120]
[322339380,1712956361937,-1614.08,0.00049315,120]
[322339381,1712956361947,-500.0,0.00049315,120]
[322339382,1712956361956,-529.92,0.00049315,120]
[322339383,1712956361965,-680.34,0.00049315,120]
[322339384,1712956361974,-5579.77,0.00049315,120]
[322339385,1712956361983,-500.0,0.00049315,120]
[322339386,1712956361993,-500.0,0.00049315,120]
[322339387,1712956362002,-500.0,0.00049315,120]
[322339388,1712956362011,-500.0,0.00049315,120]
[322339389,1712956362020,-500.0,0.00049315,120]
[322339390,1712956362029,-500.0,0.00049315,120]
[322339391,1712956362039,-2156.38,0.00049315,120]
[322339392,1712956362048,-500.0,0.00049315,120]
[322339393,1712956362058,-1171.95,0.00049315,120]
[322339394,1712956362067,-500.0,0.00049315,120]
[322339395,1712956362076,-818.6,0.00049315,120]
[322339396,1712956362086,-1000.0,0.00049315,60]
[322339397,1712956362097,-1000.0,0.00049315,60]
[322339398,1712956362106,-677.18,0.00049315,60]
[322339399,1712956362117,-1005.81,0.00049315,120]
[322339400,1712956362126,-500.0,0.00049315,120]
[322339401,1712956362135,-1566.16,0.00049315,120]
[322339402,1712956362144,-2445.94,0.00049315,120]
[322339403,1712956362153,-1512.58,0.00049315,120]
[322339404,1712956362162,-3625.83,0.00049315,120]
[322339405,1712956362172,-500.0,0.00049315,120]
[322339406,1712956362182,-500.0,0.00049315,120]
[322339407,1712956362191,-542.02,0.00049315,120]
[322339408,1712956362202,-1559.05,0.00049315,120]
[322339409,1712956362211,-500.0,0.00049315,120]
[322339410,1712956362221,-171.27,0.00049315,120]
[322339411,1712956362230,-1365.13,0.00049315,120]
[322339412,1712956362239,-500.0,0.00049315,120]
[322339413,1712956362248,-1937.56,0.00049315,120]
[322339414,1712956362258,-500.0,0.00049315,120]
[322339415,1712956362267,-2496.98,0.00049315,120]
[322339416,1712956362277,-553.72,0.00049315,120]
[322339417,1712956362286,-519.64,0.00049315,120]
[322339418,1712956362295,-500.0,0.00049315,120]
[322339419,1712956362305,-1304.68,0.00049315,120]
[322339420,1712956362315,-500.0,0.00049315,120]
[322339421,1712956362324,-500.0,0.00049315,120]
[322339422,1712956362333,-1112.77,0.00049315,120]
[322339423,1712956362345,-500.0,0.00049315,120]
[322339424,1712956362355,-1261.76,0.00049315,120]
[322339425,1712956362366,-500.0,0.00049315,120]
[322339426,1712956362375,-500.0,0.00049315,120]
[322339427,1712956362385,-1175.23,0.00049315,120]
[322339428,1712956362395,-2651.19,0.00049315,120]
[322339429,1712956362404,-653.52,0.00049315,120]
[322339430,1712956362413,-1934.28,0.00049315,21]
[322339431,1712956362423,-500.0,0.00049315,120]
[322339432,1712956362433,-854.38,0.00049315,120]
[322339433,1712956362443,-500.0,0.00049315,120]
[322339434,1712956362452,-1683.6,0.00049315,120]
[322339435,1712956362462,-829.4,0.00049315,120]
[322339436,1712956362472,-500.0,0.00049315,120]
[322339437,1712956362482,-525.17,0.00049315,120]
[322339438,1712956362491,-1255.75,0.00049315,120]
[322339439,1712956362500,-500.0,0.00049315,120]
[322339440,1712956362510,-1000.0,0.00049315,30]
[322339441,1712956362519,-1031.16817872,0.00049315,30]
[322339442,1712956362529,-151.0,0.00049315,120]
[322339443,1712956362539,-526.0,0.00049322,30]
[322339444,1712956362549,-297.0,0.00049322,30]
[322339445,1712956362559,-368.0,0.00049322,30]
[322339446,1712956362568,-150.22032791,0.0004937,120]
[322339447,1712956362578,-9422.7452,0.000494,2]
[322339448,1712956362587,-14236.85523641,0.0004941,2]
[322339449,1712956362596,-3000.0,0.00049452,120]
[322339450,1712956362605,-180.4994849,0.00049452,120]
[322339451,1712956362616,-150.0,0.00049453,7]
[322339452,1712956362625,-150.0,0.00049453,7]
[322339453,1712956362635,-150.0,0.00049453,7]
[322339454,1712956362645,-150.0,0.00049453,7]
[322339455,1712956362654,-150.0,0.00049453,7]
[322339456,1712956362664,-150.0,0.00049453,7]
[322339457,1712956362674,-150.0,0.00049453,7]
[322339458,1712956362684,-150.0,0.00049453,7]
[322339459,1712956362693,-150.0,0.00049453,7]
[322339460,1712956362703,-150.0,0.00049453,7]
[322339461,1712956362712,-150.0,0.00049453,7]
[322339462,1712956362722,-150.0,0.00049453,7]
[322339463,1712956362732,-150.0,0.00049453,7]
[322339464,1712956362742,-150.0,0.00049453,7]
[322339465,1712956362752,-150.0,0.00049453,7]
[322339466,1712956362762,-150.0,0.00049453,7]
[322339467,1712956362772,-150.0,0.00049453,7]
[322339468,1712956362782,-150.0,0.00049453,7]
[322339469,1712956362792,-150.0,0.00049453,7]
[322339470,1712956362802,-150.0,0.00049453,7]
[322339471,1712956362811,-150.0,0.00049453,7]
[322339472,1712956362821,-150.0,0.00049453,7]
[322339473,1712956362831,-150.0,0.00049453,7]
[322339474,1712956362840,-150.0,0.00049453,7]
[322339475,1712956362849,-150.0,0.00049453,7]
[322339476,1712956362859,-150.0,0.00049453,7]
[322339477,1712956362870,-150.0,0.00049453,7]
[322339478,1712956362879,-150.0,0.00049453,7]
[322339479,1712956362889,-150.0,0.00049453,7]
[322339480,1712956362898,-150.0,0.00049453,7]
[322339481,1712956362907,-150.0,0.00049453,7]
[322339482,1712956362916,-150.0,0.00049453,7]
[322339483,1712956362925,-170.9479751,0.00049453,7]
[322339484,1712956362934,-201.0,0.0004946,30]
[322339485,1712956362943,-1500.0,0.00049471,90]
[322339486,1712956362953,-500.0,0.00049471,90]
[322339487,1712956362962,-14373.23,0.000495,120]
[322339488,1712956362971,-159.69255828,0.000495,10]
[322339489,1712956362980,-2605.46570837,0.000495,120]
[322339490,1712956362989,-150.0,0.000495,10]
[322339491,1712956362999,-154.37853735,0.00049514,74]
[322339492,1712956363008,-500.0,0.00049589,120]
[322339493,1712956363017,-500.0,0.00049589,120]
[322339494,1712956363026,-500.0,0.00049589,120]
[322339495,1712956363035,-500.0,0.00049589,120]
[322339496,1712956363044,-500.0,0.00049589,2]
[322339497,1712956363054,-191.48,0.00049589,120]
[322339498,1712956363064,-632.28583126,0.00049589,120]
[322339499,1712956363074,-500.0,0.00049589,120]
[322339500,1712956363083,-500.0,0.00049589,120]
[322339501,1712956363092,-500.0,0.00049589,120]
[322339502,1712956363102,-500.0,0.00049589,120]
[322339503,1712956363113,-500.0,0.00049589,120]
[322339504,1712956363124,-500.0,0.00049589,120]
[322339505,1712956363136,-500.0,0.00049589,120]
[322339506,1712956363147,-493.95,0.00049589,120]
[322339507,1712956363158,-500.0,0.00049589,120]
[322339508,1712956363169,-500.0,0.00049589,120]
[322339509,1712956363180,-500.0,0.00049589,120]
[322339510,1712956363191,-500.0,0.00049589,120]
[322339511,1712956363202,-309.58947347,0.00049589,120]
[322339512,1712956363213,-500.0,0.00049589,120]
[322339513,1712956363223,-245.61,0.00049589,120]
[322339514,1712956363233,-500.0,0.00049589,120]
[322339515,1712956363242,-384.50853335,0.00049589,120]
[322339516,1712956363253,-622.99,0.00049589,120]
[322339517,1712956363263,-500.0,0.00049589,120]
[322339518,1712956363274,-500.0,0.00049589,120]
[322339519,1712956363285,-500.0,0.00049589,120]
[322339520,1712956363295,-500.0,0.00049589,120]
[322339521,1712956363306,-566.24,0.00049589,120]
[322339522,1712956363317,-624.09,0.00049589,120]
[322339523,1712956363328,-500.0,0.00049589,120]
[322339524,1712956363342,-881.55,0.00049589,120]
[322339525,1712956363353,-1078.5,0.00049589,120]
[322339526,1712956363365,-500.0,0.00049589,120]
[322339527,1712956363376,-500.0,0.00049589,120]
[322339528,1712956363388,-644.11,0.00049589,120]
[322339529,1712956363399,-500.0,0.00049589,120]
[322339530,1712956363410,-500.0,0.00049589,120]
[322339531,1712956363420,-535.94,0.00049589,120]
[322339532,1712956363432,-842.52,0.00049589,120]
[322339533,1712956363443,-285.25,0.00049589,120]
[322339534,1712956363453,-279.76,0.00049589,120]
[322339535,1712956363462,-1068.41,0.00049589,120]
[322339536,1712956363473,-500.0,0.00049589,120]
[322339537,1712956363484,-500.0,0.00049589,120]
[322339538,1712956363494,-523.4,0.00049589,120]
[322339539,1712956363505,-193.53,0.00049589,120]
[322339540,1712956363517,-500.0,0.00049589,120]
[322339541,1712956363528,-500.0,0.00049589,120]
[322339542,1712956363538,-500.0,0.00049589,120]
[322339543,1712956363549,-788.97,0.00049589,120]
[322339544,1712956363560,-500.0,0.00049589,120]
[322339545,1712956363570,-293.4074457,0.00049589,120]
[322339546,1712956363581,-561.46,0.00049589,120]
[322339547,1712956363591,-500.0,0.00049589,120]
[322339548,1712956363602,-500.0,0.00049589,120]
[322339549,1712956363613,-500.0,0.00049589,120]
[322339550,1712956363624,-613.88,0.00049589,120]
[322339551,1712956363635,-549.89,0.00049589,120]
[322339552,1712956363646,-773.28,0.00049589,120]
[322339553,1712956363657,-500.0,0.00049589,120]
[322339554,1712956363667,-278.81,0.00049589,120]
[322339555,1712956363677,-500.0,0.00049589,120]
[322339556,1712956363688,-500.0,0.00049589,120]
[322339557,1712956363698,-500.0,0.00049589,120]
[322339558,1712956363708,-531.65,0.00049589,120]
[322339559,1712956363718,-644.29,0.00049589,120]
[322339560,1712956363731,-611.94,0.00049589,120]
[322339561,1712956363741,-500.0,0.00049589,120]
[322339562,1712956363753,-500.0,0.00049589,120]
[322339563,1712956363763,-654.94,0.00049589,120]
[322339564,1712956363773,-500.0,0.00049589,120]
[322339565,1712956363784,-500.0,0.00049589,120]
[322339566,1712956363795,-562.36,0.00049589,120]
[322339567,1712956363806,-500.0,0.00049589,120]
[322339568,1712956363816,-500.0,0.00049589,120]
[322339569,1712956363826,-500.0,0.00049589,120]
[322339570,1712956363835,-752.36,0.00049589,120]
[322339571,1712956363846,-500.0,0.00049589,120]
[322339572,1712956363855,-500.0,0.00049589,120]
[322339573,1712956363868,-562.93,0.00049589,120]
[322339574,1712956363879,-500.0,0.00049589,5]
[322339575,1712956363888,-500.0,0.00049589,120]
[322339576,1712956363898,-500.0,0.00049589,120]
[322339577,1712956363909,-500.0,0.00049589,120]
[322339578,1712956363919,-1017.86,0.00049589,120]
[322339579,1712956363929,-500.0,0.00049589,120]
[322339580,1712956363939,-500.0,0.00049589,120]
[322339581,1712956363949,-500.0,0.00049589,120]
[322339582,1712956363960,-500.0,0.00049589,120]
[322339583,1712956363970,-665.37,0.00049589,120]
[322339584,1712956363980,-578.71,0.00049589,120]
[322339585,1712956363991,-500.0,0.00049589,120]
[322339586,1712956364002,-500.0,0.00049589,120]
[322339587,1712956364013,-500.0,0.00049589,120]
[322339588,1712956364023,-500.0,0.00049589,120]
[322339589,1712956364034,-500.0,0.00049589,120]
[322339590,1712956364045,-500.0,0.00049589,120]
[322339591,1712956364056,-500.0,0.00049589,120]
[322339592,1712956364066,-786.37,0.00049589,120]
[322339593,1712956364077,-777.13,0.00049589,120]
[322339594,1712956364088,-1047.03,0.00049589,120]
[322339595,1712956364098,-500.0,0.00049589,120]
[322339596,1712956364108,-500.0,0.00049589,120]
[322339597,1712956364120,-551.41,0.00049589,120]
[322339598,1712956364130,-619.8,0.00049589,120]
[322339599,1712956364139,-590.98,0.00049589,120]
[322339600,1712956364149,-500.0,0.00049589,120]
[322339601,1712956364159,-500.0,0.00049589,120]
[322339602,1712956364169,-500.0,0.00049589,120]
[322339603,1712956364179,-500.0,0.00049589,120]
[322339604,1712956364189,-500.0,0.00049589,120]
[322339605,1712956364200,-399.26,0.00049589,120]
[322339606,1712956364210,-500.0,0.00049589,120]
[322339607,1712956364221,-500.0,0.00049589,120]
[322339608,1712956364231,-571.13,0.00049589,120]
[322339609,1712956364242,-500.0,0.00049589,120]
[322339610,1712956364252,-456.98925875,0.00049589,120]
[322339611,1712956364262,-620.52,0.00049589,120]
[322339612,1712956364272,-717.8,0.00049589,120]
[322339613,1712956364283,-676.11,0.00049589,120]
[322339614,1712956364295,-500.0,0.00049589,120]
[322339615,1712956364304,-389.23438673,0.00049589,120]
[322339616,1712956364314,-500.0,0.00049589,120]
[322339617,1712956364324,-696.14,0.00049589,120]
[322339618,1712956364335,-681.42,0.00049589,120]
[322339619,1712956364347,-500.0,0.00049589,120]
[322339620,1712956364356,-500.0,0.00049589,120]
[322339621,1712956364370,-500.0,0.00049589,120]
[322339622,1712956364381,-500.0,0.00049589,120]
[322339623,1712956364392,-643.83,0.00049589,120]
[322339624,1712956364401,-500.0,0.00049589,120]
[322339625,1712956364412,-152.98,0.00049589,120]
[322339626,1712956364422,-1817.19,0.00049589,120]
[322339627,1712956364432,-500.0,0.00049589,120]
[322339628,1712956364442,-519.91,0.00049589,120]
[322339629,1712956364451,-500.0,0.00049589,120]
[322339630,1712956364461,-500.0,0.00049589,120]
[322339631,1712956364471,-500.0,0.00049589,120]
[322339632,1712956364481,-665.13,0.00049589,120]
[322339633,1712956364492,-500.0,0.00049589,120]
[322339634,1712956364501,-500.0,0.00049589,120]
[322339635,1712956364511,-500.0,0.00049589,120]
[322339636,1712956364521,-500.0,0.00049589,120]
[322339637,1712956364530,-8352.31,0.00049589,120]
[322339638,1712956364540,-649.27,0.00049589,120]
[322339639,1712956364550,-791.6,0.00049589,120]
[322339640,1712956364560,-500.0,0.00049589,120]
[322339641,1712956364569,-500.0,0.00049589,120]
[322339642,1712956364579,-511.51,0.00049589,7]
[322339643,1712956364590,-1945.07,0.00049589,120]
[322339644,1712956364600,-684.24,0.00049589,120]
[322339645,1712956364610,-674.93,0.00049589,120]
[322339646,1712956364623,-500.0,0.00049589,120]
[322339647,1712956364634,-1181.86,0.00049589,120]
[322339648,1712956364643,-500.0,0.00049589,120]
[322339649,1712956364653,-500.0,0.00049589,120]
[322339650,1712956364663,-500.0,0.00049589,120]
[322339651,1712956364673,-696.23,0.00049589,120]
[322339652,1712956364683,-1356.46,0.00049589,120]
[322339653,1712956364693,-309.53,0.00049589,120]
[322339654,1712956364703,-2478.45,0.00049589,120]
[322339655,1712956364713,-500.0,0.00049589,120]
[322339656,1712956364722,-500.0,0.00049589,120]
[322339657,1712956364732,-500.0,0.00049589,120]
[322339658,1712956364743,-500.0,0.00049589,120]
[322339659,1712956364754,-500.0,0.00049589,120]
[322339660,1712956364764,-500.0,0.00049589,120]
[322339661,1712956364774,-527.76,0.00049589,120]
[322339662,1712956364784,-4040.59,0.00049589,120]
[322339663,1712956364794,-806.53,0.00049589,120]
[322339664,1712956364804,-500.0,0.00049589,120]
[322339665,1712956364813,-1501.77,0.00049589,120]
[322339666,1712956364824,-500.0,0.00049589,120]
[322339667,1712956364834,-164.15,0.00049589,120]
[322339668,1712956364844,-500.0,0.00049589,120]
[322339669,1712956364853,-500.0,0.00049589,120]
[322339670,1712956364866,-500.0,0.00049589,120]
[322339671,1712956364876,-3000.0,0.00049589,120]
[322339672,1712956364886,-582.04,0.00049589,120]
[322339673,1712956364896,-575.83,0.00049589,120]
[322339674,1712956364906,-500.0,0.00049589,120]
[322339675,1712956364916,-500.0,0.00049589,120]
[322339676,1712956364925,-500.0,0.00049589,120]
[322339677,1712956364935,-624.07,0.00049589,120]
[322339678,1712956364946,-583.16,0.00049589,120]
[322339679,1712956364955,-173.54,0.00049589,120]
[322339680,1712956364966,-500.0,0.00049589,120]
[322339681,1712956364976,-500.0,0.00049589,120]
[322339682,1712956364986,-222.17,0.00049589,120]
[322339683,1712956364996,-805.36,0.00049589,120]
[322339684,1712956365006,-500.0,0.00049589,120]
[322339685,1712956365016,-500.0,0.00049589,120]
[322339686,1712956365026,-618.11,0.00049589,120]
[322339687,1712956365036,-1458.26,0.00049589,120]
[322339688,1712956365046,-500.0,0.00049589,120]
[322339689,1712956365055,-500.0,0.00049589,120]
[322339690,1712956365065,-500.0,0.00049589,120]
[322339691,1712956365075,-500.0,0.00049589,120]
[322339692,1712956365085,-521.67,0.00049589,120]
[322339693,1712956365095,-500.0,0.00049589,120]
[322339694,1712956365105,-1535.17,0.00049589,120]
[322339695,1712956365117,-935.26,0.00049589,120]
[322339696,1712956365127,-500.0,0.00049589,120]
[322339697,1712956365137,-774.55,0.00049589,120]
[322339698,1712956365147,-418.41,0.00049589,120]
[322339699,1712956365160,-541.82,0.00049589,120]
[322339700,1712956365170,-435.64856114,0.00049589,120]
[322339701,1712956365180,-20341.84,0.00049589,120]
[322339702,1712956365191,-500.0,0.00049589,120]
[322339703,1712956365201,-1608.86,0.00049589,120]
[322339704,1712956365212,-652.08,0.00049589,120]
[322339705,1712956365222,-500.0,0.00049589,120]
[322339706,1712956365231,-874.86,0.00049589,120]
[322339707,1712956365241,-500.0,0.00049589,120]
[322339708,1712956365253,-1246.74,0.00049589,120]
[322339709,1712956365264,-1419.72,0.00049589,120]
[322339710,1712956365274,-500.0,0.00049589,120]
[322339711,1712956365288,-3646.35,0.00049589,120]
[322339712,1712956365299,-3711.37,0.00049589,120]
[322339713,1712956365309,-644.18,0.00049589,120]
[322339714,1712956365319,-500.0,0.00049589,120]
[322339715,1712956365329,-455.3,0.00049589,120]
[322339716,1712956365341,-1230.23,0.00049589,120]
[322339717,1712956365351,-529.81,0.00049589,120]
[322339718,1712956365361,-500.0,0.00049589,120]
[322339719,1712956365371,-1773.86,0.00049589,120]
[322339720,1712956365381,-732.33,0.00049589,120]
[322339721,1712956365392,-2118.05,0.00049589,120]
[322339722,1712956365402,-645.62,0.00049589,120]
[322339723,1712956365412,-500.0,0.00049589,120]
[322339724,1712956365423,-1198.72,0.00049589,120]
[322339725,1712956365434,-546.03,0.00049589,120]
[322339726,1712956365444,-500.0,0.00049589,120]
[322339727,1712956365453,-5708.25,0.00049589,120]
[322339728,1712956365463,-500.0,0.00049589,120]
[322339729,1712956365473,-2977.13,0.00049589,120]
[322339730,1712956365483,-746.8,0.00049589,120]
[322339731,1712956365494,-500.0,0.00049589,120]
[322339732,1712956365504,-664.07,0.00049589,120]
[322339733,1712956365514,-500.0,0.00049589,120]
[322339734,1712956365524,-1521.01,0.00049589,120]
[322339735,1712956365534,-2320.0,0.00049589,120]
[322339736,1712956365544,-706.82,0.00049589,120]
[322339737,1712956365554,-3679.13,0.00049589,120]
[322339738,1712956365564,-500.0,0.00049589,120]
[322339739,1712956365574,-15731.26,0.00049589,120]
[322339740,1712956365584,-1058.86,0.00049589,120]
[322339741,1712956365594,-521.02,0.00049589,120]
[322339742,1712956365605,-1703.15,0.00049589,120]
[322339743,1712956365617,-1166.54,0.00049589,120]
[322339744,1712956365627,-2094.0,0.00049589,120]
[322339745,1712956365637,-500.0,0.00049589,120]
[322339746,1712956365648,-2142.41,0.00049589,120]
[322339747,1712956365658,-277.35,0.00049589,120]
[322339748,1712956365667,-985.95,0.00049589,120]
[322339749,1712956365678,-937.11,0.00049589,120]
[322339750,1712956365688,-591.24,0.00049589,120]
[322339751,1712956365698,-691.8,0.00049589,120]
[322339752,1712956365708,-2120.81,0.00049589,120]
[322339753,1712956365719,-500.0,0.00049589,120]
[322339754,1712956365729,-534.15,0.00049589,120]
[322339755,1712956365739,-512.64,0.00049589,120]
[322339756,1712956365749,-500.0,0.00049589,120]
[322339757,1712956365759,-812.89,0.00049589,120]
[322339758,1712956365770,-4130.71,0.00049589,120]
[322339759,1712956365780,-2419.16,0.00049589,120]
[322339760,1712956365790,-500.0,0.00049589,120]
[322339761,1712956365800,-3070.85,0.00049589,120]
[322339762,1712956365811,-500.0,0.00049589,120]
[322339763,1712956365820,-756.68,0.00049589,120]
[322339764,1712956365830,-642.02,0.00049589,120]
[322339765,1712956365840,-679.55,0.00049589,120]
[322339766,1712956365850,-1182.46,0.00049589,120]
[322339767,1712956365861,-906.01,0.00049589,120]
[322339768,1712956365872,-718.33,0.00049589,120]
[322339769,1712956365882,-501.77,0.00049589,120]
[322339770,1712956365892,-8113.01,0.00049589,120]
[322339771,1712956365902,-500.0,0.00049589,120]
[322339772,1712956365913,-552.54,0.00049589,120]
[322339773,1712956365922,-1691.75,0.00049589,120]
[322339774,1712956365932,-796.65,0.00049589,120]
[322339775,1712956365942,-500.0,0.00049589,120]
[322339776,1712956365953,-500.0,0.00049589,120]
[322339777,1712956365963,-1038.17,0.00049589,120]
[322339778,1712956365973,-1931.38,0.00049589,120]
[322339779,1712956365983,-1909.8,0.00049589,120]
[322339780,1712956365993,-500.0,0.00049589,120]
[322339781,1712956366004,-500.0,0.00049589,120]
[322339782,1712956366014,-1375.31,0.00049589,120]